bitfinex-derivatives/quotes_BTCF0:USTF0_20210705
["timestamp","ask_amount","ask_price","bid_price","bid_amount"]
[1625457737511,0.24057544,34348.0,34347.0,2.28252843]
[1625457737810,0.24057544,34348.0,34347.0,1.25536146]
[1625457738213,0.29957544,34348.0,34347.0,1.25536146]
[1625457738412,0.24057544,34348.0,34347.0,1.25536146]
[1625457738763,0.29957544,34348.0,34347.0,1.25536146]
[1625457738863,0.29957544,34348.0,34347.0,1.19836146]
[1625457738962,0.35857544,34348.0,34347.0,1.19836146]
[1625457739365,4.21387544,34348.0,34347.0,1.19836146]
[1625457739465,4.15487544,34348.0,34347.0,1.19836146]
[1625457739565,4.15487544,34348.0,34341.0,0.24057544]
[1625457739666,4.36445544,34348.0,34341.0,0.24057544]
[1625457739771,4.92345544,34348.0,34328.0,2.29391009]
[1625457739868,4.92345544,34348.0,34329.0,0.9891]
[1625457740420,4.92345544,34348.0,34336.0,0.51347662]
[1625457740421,0.51072266,34340.0,34336.0,0.51347662]
[1625457740519,0.84502266,34340.0,34336.0,0.51347662]
[1625457740620,0.90402266,34340.0,34336.0,0.51347662]
[1625457741173,1.53056789,34338.0,34333.0,0.24057544]
[1625457741272,1.64856789,34338.0,34333.0,0.24057544]
[1625457741473,0.5,34337.0,34333.0,0.24057544]
[1625457741574,0.48115088,34334.0,34333.0,0.24057544]
[1625457741673,0.54015088,34334.0,34333.0,0.24057544]
[1625457741975,0.59915088,34334.0,34328.0,0.51266034]
[1625457742176,0.59915088,34334.0,34325.0,1.19620746]
[1625457742177,0.50882919,34332.0,34325.0,0.51274591]
[1625457742278,0.80819919,34332.0,34325.0,0.51274591]
[1625457742379,0.86719919,34332.0,34325.0,0.51274591]
[1625457742926,0.50855899,34331.0,34323.0,0.51275943]
[1625457743025,0.56755899,34331.0,34323.0,0.56975943]
[1625457743127,0.62655899,34331.0,34323.0,0.56975943]
[1625457743376,4.2482,34330.0,34323.0,0.057]
[1625457743476,4.3072,34330.0,34322.0,0.51264153]
[1625457743577,0.72172632,34323.0,34322.0,0.51264153]
[1625457743677,0.95227632,34323.0,34322.0,0.51264153]
[1625457743876,0.95227632,34323.0,34319.0,0.51174872]
[1625457744175,0.95227632,34323.0,34318.0,1.02349745]
[1625457744176,0.95227632,34323.0,34318.0,0.51175387]
[1625457744275,0.95227632,34323.0,34319.0,0.057]
[1625457745177,0.72172632,34323.0,34319.0,0.057]
[1625457745277,0.72172632,34323.0,34319.0,0.6276477]
[1625457745377,0.72172632,34323.0,34319.0,0.6866477]
[1625457745728,0.72172632,34323.0,34319.0,0.175]
[1625457745828,0.72172632,34323.0,34319.0,0.116]
[1625457746129,0.72172632,34323.0,34319.0,0.68590673]
[1625457746981,0.72172632,34323.0,34319.0,0.62690673]
[1625457747734,0.72172632,34323.0,34319.0,0.116]
[1625457748235,0.72172632,34323.0,34319.0,0.057]
[1625457748634,0.72172632,34323.0,34319.0,0.116]
[1625457748935,0.72172632,34323.0,34319.0,0.057]
[1625457749035,0.72172632,34323.0,34319.0,0.116]
[1625457749134,0.72172632,34323.0,34319.0,0.057]
[1625457749336,0.72172632,34323.0,34317.0,0.057]
[1625457749535,0.72172632,34323.0,34317.0,0.116]
[1625457749639,0.24057544,34318.0,34317.0,0.116]
[1625457750138,0.24057544,34318.0,34317.0,0.057]
[1625457750637,0.24057544,34318.0,34316.0,0.24057544]
[1625457750737,0.29957544,34318.0,34316.0,0.24057544]
[1625457751637,0.29957544,34318.0,34313.0,0.057]
[1625457751638,0.24057544,34317.0,34313.0,0.057]
[1625457751738,0.29957544,34317.0,34313.0,0.057]
[1625457753688,0.24057544,34314.0,34313.0,0.057]
[1625457753788,0.29957544,34314.0,34313.0,0.057]
[1625457753889,0.24057544,34314.0,34313.0,0.057]
[1625457754290,0.24057544,34314.0,34310.0,0.057]
[1625457754389,0.24057544,34314.0,34310.0,0.116]
[1625457754741,0.24057544,34314.0,34310.0,0.175]
[1625457754890,0.24057544,34314.0,34310.0,0.116]
[1625457755392,0.24057544,34314.0,34310.0,0.175]
[1625457755642,0.24057544,34314.0,34313.0,0.24057544]
[1625457755743,0.24057544,34314.0,34313.0,0.66401544]
[1625457759747,0.24057544,34314.0,34313.0,0.60501544]
[1625457760751,0.24057544,34314.0,34313.0,0.66401544]
[1625457761501,0.24057544,34314.0,34313.0,0.60501544]
[1625457762405,0.24057544,34314.0,34313.0,0.66401544]
[1625457764810,0.24057544,34323.0,34313.0,0.66401544]
[1625457764912,0.50534751,34336.0,34313.0,0.60949981]
[1625457765025,0.56434751,34336.0,34314.0,0.059]
[1625457765134,0.56434751,34336.0,34314.0,0.12248388]
[1625457765212,0.56434751,34336.0,34315.0,0.057]
[1625457765313,0.50534751,34336.0,34315.0,0.116]
[1625457765414,0.50598256,34340.0,34315.0,0.17948349]
[1625457765617,0.56498256,34340.0,34315.0,0.17948349]
[1625457765714,0.24057544,34334.0,34333.0,0.24057544]
[1625457765818,0.24057544,34334.0,34333.0,0.46068544]
[1625457765922,0.24057544,34334.0,34333.0,0.51768544]
[1625457766017,0.24057544,34334.0,34333.0,0.57668544]
[1625457767471,0.24057544,34334.0,34333.0,0.63568544]
[1625457768120,0.24057544,34334.0,34333.0,0.57668544]
[1625457768220,0.24057544,34334.0,34333.0,0.63568544]
[1625457768321,0.24057544,34334.0,34333.0,0.57668544]
[1625457768826,0.24057544,34334.0,34333.0,0.51768544]
[1625457768926,0.24057544,34334.0,34333.0,0.46068544]
[1625457769025,0.24057544,34334.0,34333.0,0.24057544]
[1625457769124,0.29957544,34334.0,34333.0,0.24057544]
[1625457769776,0.24057544,34334.0,34333.0,0.29957544]
[1625457770384,0.63354544,34334.0,34317.0,0.08475966]
[1625457770483,0.69254544,34334.0,34314.0,1.9155336]
[1625457770593,0.70672195,34334.0,34314.0,1.7135336]
[1625457770679,0.01417906,34333.0,34314.0,1.7135336]
[1625457770780,0.07317906,34333.0,34314.0,1.7135336]
[1625457770886,0.6666891,34333.0,34314.0,0.84271596]
[1625457770981,0.73572333,34333.0,34313.0,1.18663529]
[1625457771086,0.059,34314.0,34313.0,1.02633529]
[1625457771179,0.35146,34314.0,34313.0,0.88033529]
[1625457771279,0.85146,34314.0,34313.0,0.15843529]
[1625457771389,0.79246,34314.0,34311.0,0.98663497]
[1625457771480,0.86564517,34314.0,34311.0,0.49943497]
[1625457771583,0.86564517,34314.0,34311.0,0.44043497]
[1625457771681,0.92464517,34314.0,34307.0,1.23100892]
[1625457771781,5.0005,34308.0,34307.0,0.95870892]
[1625457771883,5.1185,34308.0,34307.0,0.94910892]
[1625457772082,5.1185,34308.0,34307.0,0.91130892]
[1625457772182,5.1185,34308.0,34307.0,0.69280892]
[1625457772383,5.13268747,34308.0,34281.0,0.9722]
[1625457772483,5.13268747,34308.0,34281.0,1.0292]
[1625457772583,5.13268747,34308.0,34281.0,1.0882]
[1625457772882,0.01418712,34307.0,34281.0,1.0882]
[1625457772985,0.39628712,34307.0,34281.0,1.0882]
[1625457773083,0.5,34306.0,34281.0,1.0882]
[1625457773184,0.559,34306.0,34281.0,1.0882]
[1625457773337,0.618,34306.0,34281.0,1.0882]
[1625457773735,0.72172632,34282.0,34281.0,1.0882]
[1625457773836,0.72172632,34282.0,34281.0,0.116]
[1625457776240,0.72172632,34282.0,34281.0,0.175]
[1625457776640,0.66272632,34282.0,34281.0,0.116]
[1625457777142,0.66272632,34282.0,34281.0,0.175]
[1625457778598,0.66272632,34282.0,34281.0,0.116]
[1625457778896,0.66272632,34282.0,34281.0,0.175]
[1625457779447,0.66272632,34282.0,34281.0,0.116]
[1625457779948,0.66272632,34282.0,34281.0,0.175]
[1625457780247,0.66272632,34282.0,34281.0,0.116]
[1625457780497,0.66272632,34282.0,34281.0,0.175]
[1625457780698,0.66272632,34282.0,34281.0,0.118]
[1625457780800,0.66272632,34282.0,34277.0,0.24057544]
[1625457780897,0.66272632,34282.0,34277.0,0.29957544]
[1625457780999,0.66272632,34282.0,34277.0,0.35857544]
[1625457781197,0.66272632,34282.0,34277.0,0.29957544]
[1625457781298,0.66272632,34282.0,34277.0,0.35657544]
[1625457781500,0.66272632,34282.0,34277.0,0.41557544]
[1625457781800,0.24057544,34278.0,34277.0,0.175]
[1625457782306,0.24057544,34278.0,34277.0,0.118]
[1625457782408,0.24057544,34278.0,34277.0,0.175]
[1625457783012,0.24057544,34278.0,34277.0,0.118]
[1625457785113,0.24057544,34278.0,34277.0,0.175]
[1625457785364,0.24057544,34278.0,34277.0,0.118]
[1625457785813,0.24057544,34278.0,34277.0,0.35857544]
[1625457786116,0.24057544,34278.0,34277.0,0.41557544]
[1625457786616,0.24057544,34278.0,34277.0,0.29957544]
[1625457787420,0.24057544,34278.0,34277.0,0.41557544]
[1625457787518,0.24057544,34278.0,34277.0,0.35857544]
[1625457788071,0.24057544,34278.0,34277.0,0.69181544]
[1625457788170,0.24057544,34278.0,34277.0,0.74881544]
[1625457788972,0.24057544,34278.0,34277.0,0.69181544]
[1625457789522,0.24057544,34278.0,34277.0,0.63281544]
[1625457789622,0.24057544,34278.0,34277.0,0.29957544]
[1625457789924,0.24057544,34278.0,34277.0,0.35857544]
[1625457790024,0.24057544,34278.0,34277.0,0.41557544]
[1625457790824,0.24057544,34278.0,34277.0,0.35857544]
[1625457791176,0.24057544,34278.0,34277.0,0.41557544]
[1625457791576,0.24057544,34278.0,34277.0,0.35857544]
[1625457792177,0.24057544,34278.0,34277.0,0.41557544]
[1625457792277,0.24057544,34278.0,34277.0,0.64568544]
[1625457793177,0.24057544,34278.0,34277.0,0.58868544]
[1625457793477,0.24057544,34278.0,34277.0,0.52968544]
[1625457793879,0.24057544,34278.0,34277.0,0.58868544]
[1625457795132,0.24057544,34278.0,34277.0,0.64568544]
[1625457795534,0.24057544,34278.0,34277.0,0.29957544]
[1625457795633,0.24057544,34278.0,34277.0,0.059]
[1625457795884,0.24057544,34278.0,34277.0,0.118]
[1625457796086,0.24057544,34278.0,34277.0,0.059]
[1625457796184,0.24057544,34278.0,34277.0,0.118]
[1625457797686,0.24057544,34278.0,34277.0,0.36709]
[1625457798137,0.24057544,34278.0,34277.0,0.30809]
[1625457798841,0.58063544,34278.0,34277.0,0.059]
[1625457799140,0.58063544,34278.0,34274.0,0.24057544]
[1625457799540,0.58063544,34278.0,34266.0,0.057]
[1625457799639,0.58063544,34278.0,34266.0,0.059]
[1625457799740,0.63963544,34278.0,34252.0,1.14705278]
[1625457799840,0.63963544,34278.0,34261.0,0.057]
[1625457799942,0.39906,34278.0,34267.0,0.00452554]
[1625457800039,0.45806,34278.0,34267.0,0.00452554]
[1625457800242,0.45806,34278.0,34262.0,0.00452295]
[1625457800340,4.674,34265.0,34262.0,0.06352295]
[1625457800442,4.91663,34265.0,34261.0,0.057]
[1625457800740,4.91663,34265.0,34262.0,0.0045234]
[1625457801398,5.41663,34265.0,34262.0,0.0045234]
[1625457801794,5.41663,34265.0,34256.0,0.00452398]
[1625457802000,0.96230176,34257.0,34256.0,0.00452398]
[1625457802096,1.28119176,34257.0,34255.0,0.00452434]
[1625457802397,1.28119176,34257.0,34246.0,0.00452456]
[1625457802497,1.28119176,34257.0,34246.0,0.17952456]
[1625457802597,1.28119176,34257.0,34256.0,0.00452483]
[1625457802798,1.28119176,34257.0,34256.0,0.06352483]
[1625457802897,1.28119176,34257.0,34256.0,0.118]
[1625457803048,1.28119176,34257.0,34256.0,0.059]
[1625457803148,1.28119176,34257.0,34256.0,0.06352469]
[1625457803447,1.28119176,34257.0,34256.0,0.12252469]
[1625457803748,4.95169176,34257.0,34256.0,0.00452469]
[1625457803952,4.95169176,34257.0,34246.0,0.057]
[1625457804050,4.95169176,34257.0,34246.0,0.175]
[1625457804151,1.28119176,34257.0,34246.0,0.175]
[1625457804250,1.28119176,34257.0,34247.0,0.00452492]
[1625457804351,1.28119176,34257.0,34247.0,0.12252492]
[1625457804575,1.28119176,34257.0,34248.0,0.059]
[1625457804651,1.28119176,34257.0,34248.0,0.118]
[1625457804852,1.28119176,34257.0,34249.0,0.06152495]
[1625457805053,1.28119176,34257.0,34249.0,0.17952495]
[1625457805153,1.28119176,34257.0,34250.0,0.00452488]
[1625457805253,1.28119176,34257.0,34250.0,0.06352488]
[1625457805353,1.28119176,34257.0,34250.0,0.12252488]
[1625457805504,1.28119176,34257.0,34250.0,0.06352488]
[1625457805604,1.28119176,34257.0,34251.0,0.059]
[1625457805703,1.28119176,34257.0,34251.0,0.118]
[1625457805903,1.28119176,34257.0,34251.0,0.175]
[1625457806004,0.24057544,34252.0,34251.0,0.66905544]
[1625457806456,0.24057544,34252.0,34251.0,0.67358005]
[1625457806657,0.48115088,34257.0,34251.0,0.67358005]
[1625457806755,0.48115088,34257.0,34252.0,0.059]
[1625457806856,0.48115088,34257.0,34252.0,0.118]
[1625457806956,1.08324935,34273.0,34253.0,0.057]
[1625457807064,1.08324935,34273.0,34253.0,0.120524]
[1625457807156,1.08324935,34273.0,34253.0,0.179524]
[1625457807357,0.16684935,34273.0,34254.0,0.00452403]
[1625457807463,0.16684935,34273.0,34254.0,0.06352403]
[1625457807554,0.16684935,34273.0,34254.0,0.12252403]
[1625457807656,0.16684935,34273.0,34255.0,0.057]
[1625457807755,0.66662843,34275.0,34255.0,0.057]
[1625457807756,0.16725756,34280.0,34255.0,0.116]
[1625457807857,0.16725756,34280.0,34255.0,0.17952324]
[1625457807955,0.16725756,34280.0,34273.0,0.24057544]
[1625457808056,0.24057544,34274.0,34273.0,0.54307544]
[1625457808155,0.24057544,34274.0,34273.0,0.66107544]
[1625457808505,0.24057544,34274.0,34273.0,0.60207544]
[1625457808907,0.24057544,34274.0,34273.0,0.54307544]
[1625457809108,0.24057544,34274.0,34273.0,0.70207544]
[1625457809764,0.24057544,34274.0,34273.0,0.76107544]
[1625457809965,0.24057544,34274.0,34273.0,0.70207544]
[1625457810515,0.24057544,34274.0,34273.0,0.76107544]
[1625457811016,0.24057544,34274.0,34273.0,0.81807544]
[1625457811518,0.24057544,34274.0,34273.0,0.76107544]
[1625457811766,0.24057544,34274.0,34273.0,0.81807544]
[1625457812166,0.24057544,34274.0,34273.0,0.76107544]
[1625457812670,0.24057544,34274.0,34273.0,0.81807544]
[1625457813071,0.24057544,34274.0,34273.0,0.76107544]
[1625457816679,0.24057544,34274.0,34273.0,0.5205]
[1625457817130,0.24057544,34274.0,34273.0,0.5775]
[1625457817231,0.50129859,34279.0,34273.0,0.5775]
[1625457817431,1.14957782,34281.0,34273.0,0.5775]
[1625457817432,0.48115088,34281.0,34273.0,0.5775]
[1625457817729,0.48115088,34281.0,34274.0,0.00452431]
[1625457817829,0.48115088,34281.0,34274.0,0.12052431]
[1625457818030,0.24057544,34281.0,34280.0,0.48115088]
[1625457818131,0.24057544,34281.0,34280.0,0.83905088]
[1625457818434,0.24057544,34281.0,34280.0,0.89605088]
[1625457818630,0.24057544,34281.0,34280.0,0.93905088]
[1625457818931,0.24057544,34281.0,34280.0,0.99605088]
[1625457819581,0.24057544,34281.0,34280.0,0.93905088]
[1625457819781,0.24057544,34281.0,34280.0,0.88005088]
[1625457819885,0.24057544,34281.0,34280.0,0.93705088]
[1625457820033,0.24057544,34281.0,34280.0,0.99605088]
[1625457820685,0.24057544,34281.0,34280.0,0.88005088]
[1625457820786,0.24057544,34281.0,34280.0,0.93905088]
[1625457821140,0.24057544,34281.0,34280.0,0.3989]
[1625457821386,0.24057544,34281.0,34280.0,0.4579]
[1625457821688,0.24057544,34281.0,34280.0,0.3989]
[1625457821790,0.24057544,34281.0,34280.0,0.159]
[1625457822089,0.48115088,34281.0,34280.0,0.159]
[1625457822637,0.54015088,34281.0,34280.0,0.159]
[1625457822739,0.54015088,34281.0,34280.0,0.1]
[1625457823190,0.48115088,34281.0,34280.0,0.1]
[1625457823395,2.15729612,34281.0,34280.0,0.159]
[1625457823707,2.15729612,34281.0,34280.0,0.218]
[1625457823802,2.15729612,34281.0,34280.0,0.275]
[1625457823907,0.48115088,34281.0,34280.0,0.275]
[1625457824042,0.48115088,34281.0,34280.0,0.51557544]
[1625457826447,0.48115088,34281.0,34280.0,0.45657544]
[1625457826648,0.48115088,34281.0,34280.0,0.39957544]
[1625457827500,0.8182301,34281.0,34280.0,0.39957544]
[1625457827951,0.8182301,34281.0,34280.0,0.45657544]
[1625457828055,0.98687998,34281.0,34280.0,0.45657544]
[1625457828302,0.98687998,34281.0,34280.0,0.74310544]
[1625457828555,1.15744993,34281.0,34280.0,0.74310544]
[1625457828653,1.15744993,34281.0,34280.0,0.80210544]
[1625457829003,0.8194798,34281.0,34280.0,0.80210544]
[1625457829404,1.15770214,34281.0,34280.0,0.80210544]
[1625457831107,3.70509308,34281.0,34280.0,0.80210544]
[1625457831208,4.72408342,34281.0,34280.0,0.80210544]
[1625457831557,4.72408342,34281.0,34280.0,0.68610544]
[1625457831658,5.03077342,34281.0,34280.0,0.39957544]
[1625457831807,5.03077342,34281.0,34280.0,0.34057544]
[1625457831909,6.55818508,34281.0,34280.0,0.34057544]
[1625457832009,6.55818508,34281.0,34280.0,0.45657544]
[1625457832112,6.55818508,34281.0,34280.0,0.51557544]
[1625457832311,5.03077342,34281.0,34280.0,0.51557544]
[1625457833111,5.03077342,34281.0,34280.0,0.45857544]
[1625457833413,5.03077342,34281.0,34280.0,0.39957544]
[1625457834513,5.03077342,34281.0,34280.0,0.45657544]
[1625457834616,4.72408342,34281.0,34280.0,0.45657544]
[1625457834714,4.72408342,34281.0,34280.0,0.51557544]
[1625457834916,6.25196563,34281.0,34280.0,0.51557544]
[1625457835218,6.25196563,34281.0,34280.0,0.45857544]
[1625457835418,4.72408342,34281.0,34280.0,0.45857544]
[1625457835518,4.72408342,34281.0,34280.0,0.39957544]
[1625457835719,4.72408342,34281.0,34280.0,0.40408741]
[1625457836072,4.72408342,34281.0,34280.0,0.46308741]
[1625457836574,4.72408342,34281.0,34280.0,0.40408741]
[1625457837724,4.72408342,34281.0,34280.0,0.34508741]
[1625457837824,4.72408342,34281.0,34280.0,0.40408741]
[1625457837924,6.25285174,34281.0,34280.0,0.40408741]
[1625457838328,6.25285174,34281.0,34280.0,0.46308741]
[1625457839481,6.25285174,34281.0,34280.0,0.52008741]
[1625457839883,4.72408342,34281.0,34280.0,0.52008741]
[1625457840332,4.72408342,34281.0,34280.0,0.46308741]
[1625457841234,4.72408342,34281.0,34280.0,0.40408741]
[1625457841433,4.72408342,34281.0,34280.0,0.46308741]
[1625457841787,6.25068222,34281.0,34280.0,0.46308741]
[1625457841885,6.46598222,34281.0,34280.0,0.46308741]
[1625457841984,6.46598222,34281.0,34280.0,0.40408741]
[1625457842185,6.46598222,34281.0,34280.0,0.46308741]
[1625457845389,6.46598222,34281.0,34280.0,0.40408741]
[1625457846090,6.4800959,34281.0,34280.0,0.40408741]
[1625457846341,6.4800959,34281.0,34280.0,0.16351197]
[1625457847295,6.5390959,34281.0,34280.0,0.10451197]
[1625457848048,8.23063829,34281.0,34280.0,0.10451197]
[1625457848499,8.23063829,34281.0,34280.0,0.1]
[1625457848600,6.5390959,34281.0,34280.0,0.1]
[1625457849050,8.22970277,34281.0,34280.0,0.1]
[1625457849149,8.22970277,34281.0,34271.0,0.24057544]
[1625457849249,8.28870277,34281.0,34271.0,0.29957544]
[1625457849350,8.78870277,34281.0,34271.0,0.24057544]
[1625457849500,0.01411645,34280.0,34272.0,0.00451659]
[1625457849601,0.13211645,34280.0,34272.0,0.00451659]
[1625457849701,0.63211645,34280.0,34272.0,0.00451659]
[1625457849802,1.5201493,34275.0,34272.0,0.00451659]
[1625457850205,1.5791493,34275.0,34272.0,0.00451659]
[1625457850304,6.21635462,34273.0,34272.0,0.00451659]
[1625457850403,6.50485462,34273.0,34272.0,0.00451659]
[1625457850754,6.50485462,34273.0,34271.0,0.24057544]
[1625457851306,5.73432503,34272.0,34271.0,0.24057544]
[1625457851656,5.73432503,34272.0,34271.0,0.24509212]
[1625457851857,6.23432503,34272.0,34271.0,0.00451668]
[1625457851958,5.73432503,34272.0,34267.0,0.24057544]
[1625457852273,5.73432503,34272.0,34267.0,0.29957544]
[1625457852359,0.24057544,34268.0,34267.0,0.29957544]
[1625457852658,4.45858487,34268.0,34267.0,0.29957544]
[1625457852758,4.45858487,34268.0,34267.0,0.36309207]
[1625457852861,4.45858487,34268.0,34267.0,0.42009207]
[1625457852970,4.45858487,34268.0,34267.0,0.36309207]
[1625457853069,3.10886909,34268.0,34267.0,0.36309207]
[1625457853816,3.10886909,34268.0,34267.0,0.42009207]
[1625457854464,1.92784669,34268.0,34267.0,0.93550013]
[1625457854824,1.92784669,34268.0,34267.0,1.10729574]
[1625457854825,0.91551768,34268.0,34267.0,1.10729574]
[1625457855229,0.74826435,34268.0,34267.0,2.13803159]
[1625457855319,0.74826435,34268.0,34267.0,2.07903159]
[1625457855521,0.74826435,34268.0,34267.0,2.13803159]
[1625457855921,0.9173621,34268.0,34267.0,1.10729574]
[1625457856320,1.93346239,34268.0,34267.0,0.76372373]
[1625457856519,1.93346239,34268.0,34267.0,0.70672373]
[1625457856621,1.93346239,34268.0,34267.0,0.36109207]
[1625457856922,3.11876819,34268.0,34267.0,0.36109207]
[1625457857021,3.11876819,34268.0,34267.0,0.30409207]
[1625457857424,4.47278065,34268.0,34267.0,0.24509207]
[1625457858325,4.47278065,34268.0,34267.0,0.30409207]
[1625457858626,4.47278065,34268.0,34267.0,0.36109207]
[1625457859027,4.47278065,34268.0,34267.0,0.42009207]
[1625457859132,3.11876819,34268.0,34267.0,0.42009207]
[1625457859580,1.93346239,34268.0,34267.0,0.42009207]
[1625457859931,1.93346239,34268.0,34267.0,0.59191743]
[1625457860380,1.69288695,34268.0,34267.0,0.83249287]
[1625457860481,1.69288695,34268.0,34267.0,1.17617016]
[1625457861032,2.20114445,34268.0,34267.0,1.17617016]
[1625457861483,2.20114445,34268.0,34267.0,0.83249287]
[1625457862034,2.20114445,34268.0,34267.0,1.51981546]
[1625457862885,2.20114445,34268.0,34267.0,1.00432669]
[1625457863234,2.20114445,34268.0,34267.0,1.176443]
[1625457863485,2.20114445,34268.0,34267.0,1.17645136]
[1625457864435,2.44171989,34268.0,34267.0,1.17645136]
[1625457864835,0.74883294,34268.0,34267.0,1.17645136]
[1625457864936,2.61283033,34268.0,34267.0,1.17645136]
[1625457865188,3.63023146,34268.0,34267.0,1.1768458]
[1625457867192,3.63023146,34268.0,34267.0,1.86527483]
[1625457867441,3.63023146,34268.0,34267.0,1.86527511]
[1625457868994,2.44409751,34268.0,34267.0,2.89789132]
[1625457870395,2.20352207,34268.0,34267.0,2.89789132]
[1625457873059,3.39022535,34268.0,34267.0,1.86527511]
[1625457873603,3.39022535,34268.0,34267.0,1.17684608]
[1625457875057,3.39022535,34268.0,34267.0,1.86525927]
[1625457878462,3.39022535,34268.0,34267.0,1.80625927]
[1625457878560,3.69122535,34268.0,34267.0,1.80625927]
[1625457879210,3.69122535,34268.0,34267.0,1.86525927]
[1625457879560,5.04929861,34268.0,34267.0,1.17684608]
[1625457879660,5.04929861,34268.0,34267.0,1.11784608]
[1625457879961,5.04929861,34268.0,34267.0,1.46210425]
[1625457880464,5.53044949,34268.0,34267.0,0.98095337]
[1625457881013,5.53044949,34268.0,34267.0,0.63692425]
[1625457881112,5.53044949,34268.0,34267.0,0.69592425]
[1625457881563,5.53044949,34268.0,34267.0,1.04021355]
[1625457882066,4.17237623,34268.0,34267.0,1.38458571]
[1625457883768,4.17237623,34268.0,34267.0,2.41756742]
[1625457884924,4.17237623,34268.0,34267.0,1.38458571]
[1625457885323,5.53237799,34268.0,34267.0,1.38458571]
[1625457887327,5.53237799,34268.0,34267.0,1.32758571]
[1625457887527,5.53237799,34268.0,34267.0,1.26858571]
[1625457888033,7.05972954,34268.0,34267.0,0.06351691]
[1625457888537,7.30030498,34268.0,34267.0,0.06351691]
[1625457890488,7.30030498,34268.0,34264.0,0.1722252]
[1625457890590,7.35930498,34268.0,34264.0,0.1722252]
[1625457890740,0.01411899,34267.0,34265.0,0.00451855]
[1625457890840,0.07311899,34267.0,34265.0,0.00451855]
[1625457891046,1.76858029,34267.0,34265.0,0.00451855]
[1625457891342,0.01412605,34266.0,34262.0,0.00451631]
[1625457891442,0.07312605,34266.0,34262.0,0.00451631]
[1625457891541,0.07312605,34266.0,34261.0,0.9637]
[1625457891746,6.26728427,34263.0,34261.0,0.9637]
[1625457891841,6.26728427,34263.0,34262.0,0.00451653]
[1625457892092,6.28141097,34263.0,34262.0,0.00451653]
[1625457892544,6.76256185,34263.0,34262.0,0.00451653]
[1625457892645,6.74843515,34263.0,34261.0,0.9637]
[1625457893246,6.266449,34262.0,34261.0,0.9637]
[1625457893447,6.266449,34262.0,34255.0,0.75714267]
[1625457893648,6.325449,34262.0,34255.0,0.24057544]
[1625457893746,6.33957019,34262.0,34255.0,0.24057544]
[1625457893947,6.384449,34262.0,34256.0,0.00451946]
[1625457894051,1.69602813,34261.0,34256.0,0.00451946]
[1625457894150,4.2622,34257.0,34256.0,0.00451946]
[1625457894498,4.2622,34257.0,34255.0,0.24057544]
[1625457894598,0.48115088,34256.0,34255.0,0.24057544]
[1625457894798,0.48115088,34256.0,34255.0,0.29957544]
[1625457895099,6.74747283,34256.0,34255.0,0.29957544]
[1625457895402,5.22331016,34256.0,34255.0,0.35657544]
[1625457895551,5.22331016,34256.0,34255.0,0.3610947]
[1625457896354,3.86848008,34256.0,34255.0,0.3610947]
[1625457896460,3.86848008,34256.0,34255.0,0.4200947]
[1625457896802,3.86848008,34256.0,34255.0,0.3630947]
[1625457896904,3.86848008,34256.0,34255.0,0.93617078]
[1625457897203,3.86848008,34256.0,34255.0,0.87917078]
[1625457897503,3.86848008,34256.0,34255.0,0.53512006]
[1625457897603,4.20428008,34256.0,34255.0,0.47612006]
[1625457898057,4.20428008,34256.0,34255.0,0.3040947]
[1625457898507,5.56100269,34256.0,34255.0,0.3610947]
[1625457898606,5.56100269,34256.0,34255.0,0.3040947]
[1625457898807,5.56100269,34256.0,34255.0,0.2450947]
[1625457899005,5.56100269,34256.0,34255.0,0.24057544]
[1625457899306,5.56100269,34256.0,34255.0,0.29957544]
[1625457900005,5.56100269,34256.0,34255.0,0.24057544]
[1625457900107,5.56100269,34256.0,34255.0,0.29957544]
[1625457900206,5.56100269,34256.0,34255.0,0.059]
[1625457900607,5.80157813,34256.0,34255.0,0.059]
[1625457900708,9.54167813,34256.0,34255.0,0.059]
[1625457901511,5.80157813,34256.0,34255.0,0.059]
[1625457902913,5.80157813,34256.0,34255.0,0.118]
[1625457903113,5.07985181,34256.0,34255.0,0.41205]
[1625457903226,4.74405181,34256.0,34255.0,0.41205]
[1625457903417,4.74405181,34256.0,34255.0,0.35505]
[1625457903827,3.3873292,34256.0,34255.0,0.35505]
[1625457904220,4.74484949,34256.0,34255.0,0.35505]
[1625457904321,4.74484949,34256.0,34255.0,0.118]
[1625457904616,5.22600037,34256.0,34255.0,0.118]
[1625457905267,5.31300037,34256.0,34255.0,0.118]
[1625457905467,5.31300037,34256.0,34255.0,0.2045]
[1625457905567,5.31300037,34256.0,34255.0,0.118]
[1625457905667,5.22600037,34256.0,34255.0,0.118]
[1625457906067,0.48115088,34256.0,34255.0,0.118]
[1625457906620,5.23775429,34256.0,34255.0,0.118]
[1625457906919,5.23775429,34256.0,34255.0,0.059]
[1625457907478,5.23775429,34256.0,34250.0,0.51556586]
[1625457907570,5.23775429,34256.0,34250.0,0.059]
[1625457907872,3.39444079,34251.0,34250.0,0.059]
[1625457907970,3.67164079,34251.0,34250.0,0.059]
[1625457908373,5.02926167,34251.0,34250.0,0.059]
[1625457908680,5.51041255,34251.0,34250.0,0.059]
[1625457908972,4.15279167,34251.0,34250.0,0.059]
[1625457909075,0.75835088,34251.0,34250.0,0.059]
[1625457909224,0.81735088,34251.0,34250.0,0.059]
[1625457909323,0.81735088,34251.0,34247.0,0.17186666]
[1625457909527,5.56478902,34251.0,34247.0,0.059]
[1625457909826,5.56478902,34251.0,34244.0,1.42225167]
[1625457909927,5.56478902,34251.0,34247.0,0.059]
[1625457910130,4.74261582,34248.0,34240.0,0.57240786]
[1625457910227,4.74261582,34248.0,34240.0,0.63140786]
[1625457910327,4.80161582,34248.0,34240.0,0.69040786]
[1625457910537,4.74261582,34248.0,34240.0,0.69040786]
[1625457910629,0.50856609,34241.0,34240.0,1.03396622]
[1625457910949,1.18603303,34245.0,34240.0,1.03396622]
[1625457911043,1.18603303,34245.0,34240.0,1.35588622]
[1625457911134,0.68553303,34245.0,34240.0,1.35588622]
[1625457911237,0.68553303,34245.0,34240.0,1.36040625]
[1625457911338,1.52347637,34251.0,34240.0,0.50144003]
[1625457911440,1.52347637,34251.0,34244.0,4.4787]
[1625457911544,1.52347637,34251.0,34245.0,0.2047]
[1625457911631,1.35835548,34258.0,34245.0,0.116]
[1625457911830,1.35835548,34258.0,34247.0,0.059]
[1625457911931,1.35835548,34258.0,34247.0,0.118]
[1625457912034,1.35835548,34258.0,34248.0,0.116]
[1625457912132,1.35835548,34258.0,34248.0,0.175]
[1625457912232,1.35835548,34258.0,34248.0,0.17951735]
[1625457912432,1.35835548,34258.0,34249.0,0.0045172]
[1625457912533,1.35835548,34258.0,34249.0,0.1225172]
[1625457912632,1.35835548,34258.0,34250.0,0.057]